[Event "Titled Tuesday Blitz October 25 Late 2022"]
[White "Ozsakallioglu, Okan"]
[Black "Hoffmann, Asa"]
[WhiteFideId "6367011"]
[BlackFideId "2001470"]
[WhiteElo "2078"]
[BlackElo "2117"]
[Result "0-1"]
[Round "05"]
[TimeControl "180+1"]
[Date "2022.10.26"]
[WhiteClock "0:00:36"]
[BlackClock "0:00:33"]

1. e4 {[%clk 0:02:58]}  d6 {[%clk 0:02:57]} 2. d4 {[%clk 0:02:46]}  Nf6 {[%clk 0:02:56]} 3. Nc3 {[%clk 0:02:46]}  c6 {[%clk 0:02:55]} 4. Nf3 {[%clk 0:02:41]}  Bg4 {[%clk 0:02:55]} 5. Be2 {[%clk 0:02:41]}  e6 {[%clk 0:02:54]} 6. O-O {[%clk 0:02:40]}  d5 {[%clk 0:02:54]} 7. e5 {[%clk 0:02:39]}  Nfd7 {[%clk 0:02:54]} 8. h3 {[%clk 0:02:38]}  Bh5 {[%clk 0:02:53]} 9. Be3 {[%clk 0:02:34]}  c5 {[%clk 0:02:53]} 10. Nb5 {[%clk 0:02:34]}  Bxf3 {[%clk 0:02:48]} 11. Bxf3 {[%clk 0:02:34]}  cxd4 {[%clk 0:02:47]} 12. Bxd4 {[%clk 0:02:31]}  Nc6 {[%clk 0:02:47]} 13. c4 {[%clk 0:02:14]}  dxc4 {[%clk 0:02:34]} 14. Bc3 {[%clk 0:02:06]}  Ndxe5 {[%clk 0:02:15]} 15. Qe2 {[%clk 0:02:04]}  Nxf3+ {[%clk 0:02:14]} 16. Qxf3 {[%clk 0:02:05]}  Qb6 {[%clk 0:02:07]} 17. a4 {[%clk 0:01:51]}  a6 {[%clk 0:02:01]} 18. Na3 {[%clk 0:01:44]}  Qc5 {[%clk 0:01:50]} 19. Nc2 {[%clk 0:01:40]}  f6 {[%clk 0:01:41]} 20. Rfe1 {[%clk 0:01:38]}  e5 {[%clk 0:01:40]} 21. Nd4 {[%clk 0:01:35]}  Nxd4 {[%clk 0:01:34]} 22. Bxd4 {[%clk 0:01:33]}  Qc6 {[%clk 0:01:33]} 23. Qh5+ {[%clk 0:01:25]}  g6 {[%clk 0:01:30]} 24. Qh4 {[%clk 0:01:18]}  Bg7 {[%clk 0:01:26]} 25. f4 {[%clk 0:01:15]}  O-O-O {[%clk 0:01:14]} 26. Bc3 {[%clk 0:01:15]}  e4 {[%clk 0:01:05]} 27. f5 {[%clk 0:01:05]}  g5 {[%clk 0:01:04]} 28. Qh5 {[%clk 0:01:04]}  Rd3 {[%clk 0:00:58]} 29. Qf7 {[%clk 0:01:01]}  Qc7 {[%clk 0:00:57]} 30. Qe6+ {[%clk 0:01:00]}  Kb8 {[%clk 0:00:56]} 31. Rxe4 {[%clk 0:01:00]}  Rc8 {[%clk 0:00:52]} 32. Rae1 {[%clk 0:00:57]}  Qc6 {[%clk 0:00:49]} 33. Qf7 {[%clk 0:00:55]}  Rd7 {[%clk 0:00:47]} 34. Re7 {[%clk 0:00:53]}  Rcc7 {[%clk 0:00:46]} 35. Qxg7 {[%clk 0:00:52]}  Rxe7 {[%clk 0:00:44]} 36. Rxe7 {[%clk 0:00:50]}  Qc5+ {[%clk 0:00:44]} 37. Kh2 {[%clk 0:00:46]}  Qxe7 {[%clk 0:00:43]} 38. Qh8+ {[%clk 0:00:38]}  Rc8 {[%clk 0:00:42]} 39. Qxf6 {[%clk 0:00:37]}  Qxf6 {[%clk 0:00:42]} 40. Bxf6 {[%clk 0:00:38]}  Rf8 {[%clk 0:00:42]} 41. Be5+ {[%clk 0:00:39]}  Kc8 {[%clk 0:00:42]} 42. g4 {[%clk 0:00:40]}  Re8 {[%clk 0:00:40]} 43. Bf6 {[%clk 0:00:38]}  Re2+ {[%clk 0:00:39]} 44. Kg3 {[%clk 0:00:38]}  h6 {[%clk 0:00:39]} 45. Bg7 {[%clk 0:00:37]}  Kd7 {[%clk 0:00:38]} 46. Bxh6 {[%clk 0:00:37]}  Rxb2 {[%clk 0:00:37]} 47. Bxg5 {[%clk 0:00:38]}  c3 {[%clk 0:00:38]} 48. h4 {[%clk 0:00:37]}  c2 {[%clk 0:00:38]} 49. h5 {[%clk 0:00:38]}  Rb1 {[%clk 0:00:37]} 50. h6 {[%clk 0:00:38]}  c1=Q {[%clk 0:00:35]} 51. Bxc1 {[%clk 0:00:39]}  Rxc1 {[%clk 0:00:35]} 52. g5 {[%clk 0:00:38]}  Ke7 {[%clk 0:00:35]} 53. g6 {[%clk 0:00:37]}  Kf6 {[%clk 0:00:35]} 54. h7 {[%clk 0:00:37]}  Rh1 {[%clk 0:00:34]} 55. Kg4 {[%clk 0:00:37]}  b5 {[%clk 0:00:34]} 56. axb5 {[%clk 0:00:36]}  axb5 {[%clk 0:00:33]} 0-1


[Site "https://www.chess.com"]

[Event "Titled Tuesday Blitz October 25 Late 2022"]
[White "Pap, Gyula"]
[Black "Bortnyk, Olexandr"]
[WhiteFideId "725323"]
[BlackFideId "14120828"]
[WhiteElo "2519"]
[BlackElo "2723"]
[Result "1-0"]
[Round "05"]
[TimeControl "180+1"]
[Date "2022.10.26"]
[WhiteClock "0:00:09"]
[BlackClock "0:00:15"]

1. d4 {[%clk 0:03:00]}  d6 {[%clk 0:03:00]} 2. e4 {[%clk 0:03:00]}  Nf6 {[%clk 0:03:00]} 3. Nc3 {[%clk 0:03:01]}  Nbd7 {[%clk 0:02:59]} 4. f4 {[%clk 0:03:01]}  e5 {[%clk 0:02:59]} 5. Nf3 {[%clk 0:03:01]}  exd4 {[%clk 0:03:00]} 6. Qxd4 {[%clk 0:03:02]}  c6 {[%clk 0:03:00]} 7. Bd2 {[%clk 0:03:02]}  d5 {[%clk 0:03:00]} 8. exd5 {[%clk 0:02:56]}  Bc5 {[%clk 0:02:59]} 9. Qd3 {[%clk 0:02:56]}  O-O {[%clk 0:02:49]} 10. O-O-O {[%clk 0:02:56]}  Nb6 {[%clk 0:02:39]} 11. dxc6 {[%clk 0:02:52]}  Qc7 {[%clk 0:02:39]} 12. Ne4 {[%clk 0:02:20]}  Be7 {[%clk 0:02:30]} 13. Nfg5 {[%clk 0:02:07]}  g6 {[%clk 0:02:26]} 14. Nxf6+ {[%clk 0:01:43]}  Bxf6 {[%clk 0:02:27]} 15. Ne4 {[%clk 0:01:43]}  Bg7 {[%clk 0:02:23]} 16. Qd6 {[%clk 0:01:39]}  Qxc6 {[%clk 0:02:18]} 17. Qxc6 {[%clk 0:01:39]}  bxc6 {[%clk 0:02:19]} 18. Bc3 {[%clk 0:01:12]}  Nd5 {[%clk 0:02:19]} 19. Bxg7 {[%clk 0:01:11]}  Kxg7 {[%clk 0:02:20]} 20. g3 {[%clk 0:01:08]}  Bg4 {[%clk 0:02:20]} 21. Re1 {[%clk 0:01:03]}  Bf3 {[%clk 0:02:09]} 22. Rg1 {[%clk 0:01:03]}  Rfe8 {[%clk 0:02:07]} 23. Bd3 {[%clk 0:00:59]}  Nb4 {[%clk 0:02:08]} 24. a3 {[%clk 0:00:40]}  Nxd3+ {[%clk 0:02:03]} 25. cxd3 {[%clk 0:00:41]}  Rad8 {[%clk 0:02:03]} 26. Kc2 {[%clk 0:00:40]}  Rd4 {[%clk 0:01:47]} 27. Nd2 {[%clk 0:00:36]}  Be2 {[%clk 0:01:44]} 28. Nb3 {[%clk 0:00:28]}  Bxd3+ {[%clk 0:00:58]} 29. Kc3 {[%clk 0:00:28]}  Rxe1 {[%clk 0:00:58]} 30. Rxe1 {[%clk 0:00:27]}  Rd5 {[%clk 0:00:59]} 31. Rd1 {[%clk 0:00:24]}  Be4 {[%clk 0:00:59]} 32. Rxd5 {[%clk 0:00:24]}  Bxd5 {[%clk 0:01:00]} 33. Nd4 {[%clk 0:00:20]}  g5 {[%clk 0:00:46]} 34. a4 {[%clk 0:00:18]}  Kg6 {[%clk 0:00:43]} 35. Kb4 {[%clk 0:00:18]}  Kh5 {[%clk 0:00:40]} 36. fxg5 {[%clk 0:00:15]}  Kxg5 {[%clk 0:00:38]} 37. Kc5 {[%clk 0:00:15]}  a6 {[%clk 0:00:24]} 38. b4 {[%clk 0:00:11]}  h5 {[%clk 0:00:22]} 39. Nxc6 {[%clk 0:00:11]}  Bb3 {[%clk 0:00:23]} 40. b5 {[%clk 0:00:11]}  axb5 {[%clk 0:00:20]} 41. axb5 {[%clk 0:00:12]}  Be6 {[%clk 0:00:21]} 42. Na7 {[%clk 0:00:09]}  Bh3 {[%clk 0:00:14]} 43. b6 {[%clk 0:00:09]}  Bg2 {[%clk 0:00:15]} 44. Nc6 {[%clk 0:00:09]}  Kg4 {[%clk 0:00:15]} 45. b7 {[%clk 0:00:09]}  Kh3 {[%clk 0:00:16]} 46. b8=Q {[%clk 0:00:10]}  Kxh2 {[%clk 0:00:16]} 47. Qf4 {[%clk 0:00:10]}  Bh3 {[%clk 0:00:15]} 48. Qh4 {[%clk 0:00:09]}  Kg2 {[%clk 0:00:15]} 49. Qxh5 {[%clk 0:00:09]} 1-0


[Site "https://www.chess.com"]

[Event "Titled Tuesday Blitz October 25 Late 2022"]
[White "Petrova, Irina"]
[Black "Toncheva, Nadya"]
[WhiteFideId "14124122"]
[BlackFideId "2924056"]
[WhiteElo "2023"]
[BlackElo "2101"]
[Result "1/2-1/2"]
[Round "05"]
[TimeControl "180+1"]
[Date "2022.10.26"]
[WhiteClock "0:00:06"]
[BlackClock "0:00:04"]

1. e4 {[%clk 0:03:00]}  c5 {[%clk 0:02:59]} 2. Nf3 {[%clk 0:03:00]}  Nc6 {[%clk 0:02:58]} 3. Bb5 {[%clk 0:03:00]}  e6 {[%clk 0:02:57]} 4. Bxc6 {[%clk 0:02:59]}  bxc6 {[%clk 0:02:58]} 5. O-O {[%clk 0:03:00]}  d6 {[%clk 0:02:57]} 6. b3 {[%clk 0:03:00]}  Ne7 {[%clk 0:02:55]} 7. Bb2 {[%clk 0:03:00]}  e5 {[%clk 0:02:55]} 8. c3 {[%clk 0:02:50]}  g6 {[%clk 0:02:50]} 9. d4 {[%clk 0:02:50]}  exd4 {[%clk 0:02:44]} 10. cxd4 {[%clk 0:02:51]}  Bg7 {[%clk 0:02:45]} 11. Nc3 {[%clk 0:02:37]}  cxd4 {[%clk 0:02:31]} 12. Nxd4 {[%clk 0:02:38]}  O-O {[%clk 0:02:29]} 13. Rc1 {[%clk 0:02:37]}  Bb7 {[%clk 0:02:22]} 14. Re1 {[%clk 0:02:28]}  Re8 {[%clk 0:02:18]} 15. Na4 {[%clk 0:02:19]}  Qd7 {[%clk 0:01:56]} 16. Nf3 {[%clk 0:02:09]}  Bxb2 {[%clk 0:01:50]} 17. Nxb2 {[%clk 0:02:10]}  Rad8 {[%clk 0:01:44]} 18. Nc4 {[%clk 0:01:48]}  c5 {[%clk 0:01:22]} 19. Nfd2 {[%clk 0:01:37]}  Nc6 {[%clk 0:01:20]} 20. Nf3 {[%clk 0:00:57]}  Nb4 {[%clk 0:01:11]} 21. e5 {[%clk 0:00:37]}  dxe5 {[%clk 0:01:00]} 22. Qxd7 {[%clk 0:00:36]}  Rxd7 {[%clk 0:01:01]} 23. Nfxe5 {[%clk 0:00:35]}  Rdd8 {[%clk 0:00:42]} 24. a3 {[%clk 0:00:34]}  Nd5 {[%clk 0:00:35]} 25. Nd3 {[%clk 0:00:20]}  Bc6 {[%clk 0:00:20]} 26. Nxc5 {[%clk 0:00:19]}  Rxe1+ {[%clk 0:00:18]} 27. Rxe1 {[%clk 0:00:20]}  Nf4 {[%clk 0:00:19]} 28. h3 {[%clk 0:00:18]}  Nxg2 {[%clk 0:00:18]} 29. Re7 {[%clk 0:00:17]}  Nf4 {[%clk 0:00:18]} 30. Ne5 {[%clk 0:00:15]}  Bd5 {[%clk 0:00:16]} 31. Ncd7 {[%clk 0:00:14]}  Kg7 {[%clk 0:00:13]} 32. b4 {[%clk 0:00:12]}  Rc8 {[%clk 0:00:12]} 33. Nc5 {[%clk 0:00:11]}  Nxh3+ {[%clk 0:00:11]} 34. Kh2 {[%clk 0:00:11]}  Nxf2 {[%clk 0:00:11]} 35. Ned7 {[%clk 0:00:09]}  Ng4+ {[%clk 0:00:10]} 36. Kg3 {[%clk 0:00:08]}  Nf6 {[%clk 0:00:11]} 37. Nxf6 {[%clk 0:00:08]}  Kxf6 {[%clk 0:00:12]} 38. Rxa7 {[%clk 0:00:08]}  h5 {[%clk 0:00:11]} 39. Nd7+ {[%clk 0:00:08]}  Kf5 {[%clk 0:00:10]} 40. Nc5 {[%clk 0:00:08]}  g5 {[%clk 0:00:10]} 41. a4 {[%clk 0:00:08]}  h4+ {[%clk 0:00:10]} 42. Kh2 {[%clk 0:00:08]}  g4 {[%clk 0:00:10]} 43. Re7 {[%clk 0:00:07]}  g3+ {[%clk 0:00:10]} 44. Kh3 {[%clk 0:00:07]}  Rg8 {[%clk 0:00:08]} 45. Re1 {[%clk 0:00:06]}  g2 {[%clk 0:00:03]} 46. Kh2 {[%clk 0:00:07]}  Kf4 {[%clk 0:00:03]} 47. Nd3+ {[%clk 0:00:07]}  Kf3 {[%clk 0:00:03]} 48. Ne5+ {[%clk 0:00:07]}  Kf4 {[%clk 0:00:04]} 49. Nd3+ {[%clk 0:00:07]}  Kf5 {[%clk 0:00:04]} 50. Re5+ {[%clk 0:00:07]}  Kf6 {[%clk 0:00:03]} 51. Re1 {[%clk 0:00:07]}  Bf3 {[%clk 0:00:03]} 52. Nf4 {[%clk 0:00:07]}  Kf5 {[%clk 0:00:03]} 53. Nh3 {[%clk 0:00:07]}  Bc6 {[%clk 0:00:01]} 54. Ng1 {[%clk 0:00:06]}  Bxa4 {[%clk 0:00:02]} 55. Ra1 {[%clk 0:00:05]}  Bc6 {[%clk 0:00:02]} 56. Ra5+ {[%clk 0:00:05]}  Kf4 {[%clk 0:00:03]} 57. b5 {[%clk 0:00:05]}  f5 {[%clk 0:00:03]} 58. bxc6 {[%clk 0:00:04]}  Rc8 {[%clk 0:00:04]} 59. Ra4+ {[%clk 0:00:04]}  Ke3 {[%clk 0:00:03]} 60. Rxh4 {[%clk 0:00:04]}  Rxc6 {[%clk 0:00:04]} 61. Rh3+ {[%clk 0:00:04]}  Kf4 {[%clk 0:00:03]} 62. Rf3+ {[%clk 0:00:04]}  Kg4 {[%clk 0:00:03]} 63. Kxg2 {[%clk 0:00:04]}  Rc2+ {[%clk 0:00:03]} 64. Rf2 {[%clk 0:00:04]}  Rxf2+ {[%clk 0:00:02]} 65. Kxf2 {[%clk 0:00:05]}  f4 {[%clk 0:00:02]} 66. Nf3 {[%clk 0:00:05]}  Kf5 {[%clk 0:00:02]} 67. Nh4+ {[%clk 0:00:05]}  Ke6 {[%clk 0:00:03]} 68. Ng2 {[%clk 0:00:06]}  Kd7 {[%clk 0:00:04]} 69. Nxf4 {[%clk 0:00:06]} 1/2-1/2


[Site "https://www.chess.com"]

[Event "Titled Tuesday Blitz October 25 Late 2022"]
[White "Petrovic, Aleksa"]
[Black "Liu, Kelsey"]
[WhiteFideId "967629"]
[BlackFideId "30944481"]
[WhiteElo "2242"]
[BlackElo "2385"]
[Result "1-0"]
[Round "05"]
[TimeControl "180+1"]
[Date "2022.10.26"]
[WhiteClock "0:00:17"]
[BlackClock "0:00:02"]

1. e4 {[%clk 0:03:00]}  c5 {[%clk 0:02:58]} 2. Nc3 {[%clk 0:03:00]}  e6 {[%clk 0:02:57]} 3. g3 {[%clk 0:02:55]}  Nc6 {[%clk 0:02:56]} 4. Bg2 {[%clk 0:02:55]}  g6 {[%clk 0:02:48]} 5. d3 {[%clk 0:02:53]}  Bg7 {[%clk 0:02:44]} 6. Nh3 {[%clk 0:02:52]}  Nge7 {[%clk 0:02:39]} 7. O-O {[%clk 0:02:52]}  O-O {[%clk 0:02:37]} 8. f4 {[%clk 0:02:43]}  d6 {[%clk 0:02:29]} 9. g4 {[%clk 0:02:39]}  Nd4 {[%clk 0:02:26]} 10. f5 {[%clk 0:02:34]}  exf5 {[%clk 0:02:20]} 11. gxf5 {[%clk 0:02:32]}  gxf5 {[%clk 0:02:20]} 12. Qh5 {[%clk 0:02:29]}  f6 {[%clk 0:01:32]} 13. exf5 {[%clk 0:02:24]}  Bxf5 {[%clk 0:01:28]} 14. Rxf5 {[%clk 0:01:40]}  Nexf5 {[%clk 0:01:20]} 15. Be4 {[%clk 0:01:19]}  Qe8 {[%clk 0:01:17]} 16. Qd1 {[%clk 0:00:53]}  Qg6+ {[%clk 0:00:54]} 17. Kh1 {[%clk 0:00:50]}  Rae8 {[%clk 0:00:53]} 18. Nf4 {[%clk 0:00:40]}  Qh6 {[%clk 0:00:33]} 19. Qg4 {[%clk 0:00:32]}  Qh4 {[%clk 0:00:24]} 20. Bxf5 {[%clk 0:00:21]}  Nxf5 {[%clk 0:00:23]} 21. Qxf5 {[%clk 0:00:20]}  Re1+ {[%clk 0:00:23]} 22. Kg2 {[%clk 0:00:21]}  Rfe8 {[%clk 0:00:07]} 23. Ne4 {[%clk 0:00:21]}  Kh8 {[%clk 0:00:05]} 24. b3 {[%clk 0:00:19]}  Rd1 {[%clk 0:00:02]} 25. Bb2 {[%clk 0:00:17]} 1-0


[Site "https://www.chess.com"]

[Event "Titled Tuesday Blitz October 25 Late 2022"]
[White "Potapova, Margarita"]
[Black "Almedina Ortiz, Edgardo J."]
[WhiteFideId "14126869"]
[BlackFideId "3100197"]
[WhiteElo "2150"]
[BlackElo "2217"]
[Result "1-0"]
[Round "05"]
[TimeControl "180+1"]
[Date "2022.10.26"]
[WhiteClock "0:01:52"]
[BlackClock "0:00:02"]

1. d4 {[%clk 0:03:00]}  Nf6 {[%clk 0:02:58]} 2. c4 {[%clk 0:03:01]}  e6 {[%clk 0:02:59]} 3. Nc3 {[%clk 0:03:01]}  Bb4 {[%clk 0:02:59]} 4. Qc2 {[%clk 0:03:02]}  O-O {[%clk 0:02:57]} 5. Nf3 {[%clk 0:03:02]}  b6 {[%clk 0:02:33]} 6. e4 {[%clk 0:02:55]}  Bxc3+ {[%clk 0:01:48]} 7. bxc3 {[%clk 0:02:54]}  Ne8 {[%clk 0:01:48]} 8. Bd3 {[%clk 0:02:55]}  Nc6 {[%clk 0:01:48]} 9. O-O {[%clk 0:02:55]}  Ba6 {[%clk 0:01:48]} 10. e5 {[%clk 0:02:55]}  f5 {[%clk 0:01:47]} 11. exf6 {[%clk 0:02:53]}  Nxf6 {[%clk 0:01:47]} 12. Ng5 {[%clk 0:02:53]}  h6 {[%clk 0:01:34]} 13. Nh7 {[%clk 0:02:53]}  Nxh7 {[%clk 0:01:32]} 14. Bxh7+ {[%clk 0:02:54]}  Kh8 {[%clk 0:01:32]} 15. Be4 {[%clk 0:02:52]}  Bxc4 {[%clk 0:01:28]} 16. Re1 {[%clk 0:02:53]}  Qf6 {[%clk 0:01:22]} 17. Be3 {[%clk 0:02:52]}  Rae8 {[%clk 0:01:18]} 18. Qd1 {[%clk 0:02:47]}  d5 {[%clk 0:01:14]} 19. Bb1 {[%clk 0:02:43]}  e5 {[%clk 0:01:08]} 20. dxe5 {[%clk 0:02:40]}  Rxe5 {[%clk 0:00:50]} 21. Qc2 {[%clk 0:02:22]}  Kg8 {[%clk 0:00:23]} 22. Qh7+ {[%clk 0:02:17]}  Kf7 {[%clk 0:00:23]} 23. Bc2 {[%clk 0:02:12]}  Rfe8 {[%clk 0:00:17]} 24. h3 {[%clk 0:02:03]}  Na5 {[%clk 0:00:11]} 25. Ba4 {[%clk 0:02:00]}  b5 {[%clk 0:00:10]} 26. Bd1 {[%clk 0:02:01]}  c6 {[%clk 0:00:06]} 27. Qc2 {[%clk 0:01:54]}  a6 {[%clk 0:00:03]} 28. Bf3 {[%clk 0:01:52]}  Nb7 {[%clk 0:00:02]} 29. Red1 {[%clk 0:01:52]} 1-0


[Site "https://www.chess.com"]

[Event "Titled Tuesday Blitz October 25 Late 2022"]
[White "Rostomyan, Mikayel"]
[Black "Pinero Rodriguez, Carlos Jose"]
[WhiteFideId "13313754"]
[BlackFideId "3901726"]
[WhiteElo "2018"]
[BlackElo "2146"]
[Result "1-0"]
[Round "05"]
[TimeControl "180+1"]
[Date "2022.10.26"]
[WhiteClock "0:00:30"]
[BlackClock "0:00:25"]

1. d4 {[%clk 0:03:00]}  Nf6 {[%clk 0:02:57]} 2. Nf3 {[%clk 0:02:59]}  e6 {[%clk 0:02:56]} 3. c4 {[%clk 0:02:58]}  Bb4+ {[%clk 0:02:55]} 4. Bd2 {[%clk 0:02:57]}  Qe7 {[%clk 0:02:54]} 5. a3 {[%clk 0:02:52]}  Bxd2+ {[%clk 0:02:52]} 6. Qxd2 {[%clk 0:02:53]}  O-O {[%clk 0:02:50]} 7. Nc3 {[%clk 0:02:53]}  d6 {[%clk 0:02:50]} 8. g4 {[%clk 0:02:48]}  c6 {[%clk 0:02:39]} 9. g5 {[%clk 0:02:47]}  Nfd7 {[%clk 0:02:37]} 10. h4 {[%clk 0:02:43]}  e5 {[%clk 0:02:35]} 11. e3 {[%clk 0:02:43]}  e4 {[%clk 0:02:30]} 12. Nh2 {[%clk 0:02:41]}  f5 {[%clk 0:02:28]} 13. Bg2 {[%clk 0:02:36]}  Na6 {[%clk 0:02:24]} 14. O-O-O {[%clk 0:02:35]}  Nc7 {[%clk 0:02:22]} 15. f3 {[%clk 0:02:32]}  exf3 {[%clk 0:02:11]} 16. Nxf3 {[%clk 0:02:27]}  d5 {[%clk 0:01:58]} 17. cxd5 {[%clk 0:02:23]}  cxd5 {[%clk 0:01:58]} 18. h5 {[%clk 0:02:18]}  Nb6 {[%clk 0:01:47]} 19. g6 {[%clk 0:02:03]}  h6 {[%clk 0:01:44]} 20. Ne5 {[%clk 0:02:03]}  Be6 {[%clk 0:01:41]} 21. Kb1 {[%clk 0:02:02]}  Rac8 {[%clk 0:01:36]} 22. Rc1 {[%clk 0:01:59]}  Qd6 {[%clk 0:01:33]} 23. Rhf1 {[%clk 0:01:55]}  Nd7 {[%clk 0:01:31]} 24. Nxd7 {[%clk 0:01:51]}  Qxd7 {[%clk 0:01:29]} 25. Rf4 {[%clk 0:01:50]}  b6 {[%clk 0:01:24]} 26. Rcf1 {[%clk 0:01:49]}  Rf6 {[%clk 0:01:22]} 27. Qf2 {[%clk 0:01:47]}  Rcf8 {[%clk 0:01:21]} 28. Bh3 {[%clk 0:01:44]}  Nb5 {[%clk 0:01:19]} 29. Nxb5 {[%clk 0:01:38]}  Qxb5 {[%clk 0:01:19]} 30. Ka1 {[%clk 0:01:36]}  Rc8 {[%clk 0:01:16]} 31. Bxf5 {[%clk 0:01:27]}  Bxf5 {[%clk 0:01:15]} 32. Rxf5 {[%clk 0:01:26]}  Rcf8 {[%clk 0:01:15]} 33. Qc2 {[%clk 0:00:39]}  Rxf5 {[%clk 0:00:28]} 34. Rxf5 {[%clk 0:00:38]}  Re8 {[%clk 0:00:25]} 35. Qc7 {[%clk 0:00:30]} 1-0


[Site "https://www.chess.com"]

[Event "Titled Tuesday Blitz October 25 Late 2022"]
[White "Sanal, Vahap"]
[Black "Ernst, Sipke"]
[WhiteFideId "6300545"]
[BlackFideId "1004689"]
[WhiteElo "2574"]
[BlackElo "2438"]
[Result "1-0"]
[Round "05"]
[TimeControl "180+1"]
[Date "2022.10.26"]
[WhiteClock "0:01:20"]
[BlackClock "0:00:15"]

1. Nf3 {[%clk 0:03:00]}  d5 {[%clk 0:03:00]} 2. b3 {[%clk 0:03:01]}  Nf6 {[%clk 0:02:52]} 3. Bb2 {[%clk 0:03:01]}  g6 {[%clk 0:02:53]} 4. g3 {[%clk 0:03:01]}  Bg7 {[%clk 0:02:53]} 5. Bg2 {[%clk 0:03:02]}  O-O {[%clk 0:02:53]} 6. c4 {[%clk 0:03:02]}  c6 {[%clk 0:02:53]} 7. O-O {[%clk 0:03:02]}  Bg4 {[%clk 0:02:52]} 8. d3 {[%clk 0:03:01]}  Nbd7 {[%clk 0:02:49]} 9. Nbd2 {[%clk 0:03:00]}  a5 {[%clk 0:02:48]} 10. a3 {[%clk 0:03:00]}  e6 {[%clk 0:02:48]} 11. Qc2 {[%clk 0:03:00]}  Qb8 {[%clk 0:02:42]} 12. Rab1 {[%clk 0:02:59]}  Rc8 {[%clk 0:02:41]} 13. Rfc1 {[%clk 0:02:58]}  Bxf3 {[%clk 0:02:38]} 14. Nxf3 {[%clk 0:02:58]}  c5 {[%clk 0:02:25]} 15. e3 {[%clk 0:02:51]}  b5 {[%clk 0:02:21]} 16. Qe2 {[%clk 0:02:48]}  Ra7 {[%clk 0:02:05]} 17. e4 {[%clk 0:02:46]}  bxc4 {[%clk 0:01:42]} 18. bxc4 {[%clk 0:02:46]}  Rb7 {[%clk 0:01:42]} 19. cxd5 {[%clk 0:02:42]}  exd5 {[%clk 0:01:42]} 20. Rc2 {[%clk 0:02:27]}  c4 {[%clk 0:01:31]} 21. Rbc1 {[%clk 0:02:15]}  Nc5 {[%clk 0:01:24]} 22. Be5 {[%clk 0:01:55]}  cxd3 {[%clk 0:01:16]} 23. Qxd3 {[%clk 0:01:52]}  dxe4 {[%clk 0:00:50]} 24. Qd4 {[%clk 0:01:52]}  Nfd7 {[%clk 0:00:42]} 25. Bxg7 {[%clk 0:01:48]}  exf3 {[%clk 0:00:42]} 26. Bh6 {[%clk 0:01:39]}  Qe5 {[%clk 0:00:41]} 27. Qxe5 {[%clk 0:01:38]}  Nxe5 {[%clk 0:00:41]} 28. Rxc5 {[%clk 0:01:39]}  Rxc5 {[%clk 0:00:33]} 29. Rxc5 {[%clk 0:01:40]}  Rb1+ {[%clk 0:00:33]} 30. Bf1 {[%clk 0:01:39]}  f6 {[%clk 0:00:32]} 31. Rc3 {[%clk 0:01:34]}  g5 {[%clk 0:00:30]} 32. h4 {[%clk 0:01:33]}  Kf7 {[%clk 0:00:20]} 33. hxg5 {[%clk 0:01:31]}  Kg6 {[%clk 0:00:21]} 34. Bf8 {[%clk 0:01:26]}  fxg5 {[%clk 0:00:21]} 35. Bc5 {[%clk 0:01:25]}  h5 {[%clk 0:00:20]} 36. Be3 {[%clk 0:01:25]}  Ng4 {[%clk 0:00:20]} 37. Rc6+ {[%clk 0:01:23]}  Kf5 {[%clk 0:00:19]} 38. Rc5+ {[%clk 0:01:23]}  Ke4 {[%clk 0:00:19]} 39. Bxg5 {[%clk 0:01:23]}  Ne5 {[%clk 0:00:18]} 40. Rc1 {[%clk 0:01:23]}  Rb3 {[%clk 0:00:18]} 41. Re1+ {[%clk 0:01:23]}  Kf5 {[%clk 0:00:18]} 42. Bf4 {[%clk 0:01:23]}  Ng4 {[%clk 0:00:18]} 43. Bh3 {[%clk 0:01:23]}  Rb2 {[%clk 0:00:18]} 44. Re5+ {[%clk 0:01:22]}  Kf6 {[%clk 0:00:18]} 45. Bxg4 {[%clk 0:01:20]}  hxg4 {[%clk 0:00:18]} 46. Rxa5 {[%clk 0:01:19]}  Rb1+ {[%clk 0:00:15]} 47. Kh2 {[%clk 0:01:20]} 1-0


[Site "https://www.chess.com"]

[Event "Titled Tuesday Blitz October 25 Late 2022"]
[White "Sarana, Alexey"]
[Black "Goryachkina, Aleksandra"]
[WhiteFideId "24133795"]
[BlackFideId "4147103"]
[WhiteElo "2689"]
[BlackElo "2484"]
[Result "1-0"]
[Round "05"]
[TimeControl "180+1"]
[Date "2022.10.26"]
[WhiteClock "0:00:52"]
[BlackClock "0:00:02"]

1. c4 {[%clk 0:03:00]}  e6 {[%clk 0:02:59]} 2. Nc3 {[%clk 0:03:00]}  d5 {[%clk 0:02:59]} 3. d4 {[%clk 0:03:00]}  Nf6 {[%clk 0:02:59]} 4. cxd5 {[%clk 0:03:00]}  exd5 {[%clk 0:02:59]} 5. Bf4 {[%clk 0:03:01]}  c6 {[%clk 0:02:53]} 6. e3 {[%clk 0:03:01]}  Bf5 {[%clk 0:02:50]} 7. Nge2 {[%clk 0:02:57]}  Bd6 {[%clk 0:02:48]} 8. Bxd6 {[%clk 0:02:52]}  Qxd6 {[%clk 0:02:47]} 9. Ng3 {[%clk 0:02:53]}  Bg6 {[%clk 0:02:44]} 10. h4 {[%clk 0:02:52]}  h5 {[%clk 0:02:39]} 11. Nce2 {[%clk 0:02:48]}  Ne4 {[%clk 0:02:19]} 12. Nxe4 {[%clk 0:02:44]}  Bxe4 {[%clk 0:02:19]} 13. f3 {[%clk 0:02:34]}  Bf5 {[%clk 0:02:09]} 14. Kf2 {[%clk 0:02:34]}  Nd7 {[%clk 0:02:08]} 15. Qb3 {[%clk 0:02:32]}  O-O-O {[%clk 0:02:01]} 16. a4 {[%clk 0:02:27]}  Rhe8 {[%clk 0:01:50]} 17. a5 {[%clk 0:02:23]}  a6 {[%clk 0:01:49]} 18. Ng3 {[%clk 0:02:09]}  Bg6 {[%clk 0:01:49]} 19. Be2 {[%clk 0:02:09]}  Re6 {[%clk 0:01:48]} 20. Rhc1 {[%clk 0:02:07]}  Rde8 {[%clk 0:01:37]} 21. Rc3 {[%clk 0:02:07]}  Qe7 {[%clk 0:01:28]} 22. Rac1 {[%clk 0:01:52]}  Nb8 {[%clk 0:01:16]} 23. Rh1 {[%clk 0:01:42]}  Qd6 {[%clk 0:00:39]} 24. f4 {[%clk 0:01:35]}  Be4 {[%clk 0:00:30]} 25. Bxh5 {[%clk 0:01:25]}  g6 {[%clk 0:00:29]} 26. Bg4 {[%clk 0:01:25]}  f5 {[%clk 0:00:27]} 27. Be2 {[%clk 0:01:17]}  Nd7 {[%clk 0:00:25]} 28. Rhc1 {[%clk 0:01:17]}  Nb8 {[%clk 0:00:14]} 29. Nxe4 {[%clk 0:00:55]}  Rxe4 {[%clk 0:00:09]} 30. Bf3 {[%clk 0:00:56]}  R4e7 {[%clk 0:00:04]} 31. Bxd5 {[%clk 0:00:56]}  Qf6 {[%clk 0:00:03]} 32. g3 {[%clk 0:00:54]}  Rc7 {[%clk 0:00:01]} 33. Bf3 {[%clk 0:00:54]}  Nd7 {[%clk 0:00:02]} 34. d5 {[%clk 0:00:52]} 1-0


[Site "https://www.chess.com"]